fUST/lending_fUST_20250625
["ID","MTS","AMOUNT","RATE_DAILY","PERIOD"]
[367507283,1750835439152,-500.15,0.00016891,2]
[367507284,1750835439162,-460.0,0.00016891,2]
[367507285,1750835439172,-460.0,0.00016891,2]
[367507286,1750835439182,-480.08761318,0.00016891,2]
[367507287,1750835439191,-460.0,0.00016891,2]
[367507288,1750835439200,-460.0,0.00016891,2]
[367507289,1750835439209,-460.0,0.00016891,2]
[367507290,1750835439219,-593.2,0.00016891,2]
[367507291,1750835439228,-301.58867324,0.00016891,2]
[367507292,1750835439237,-400.0,0.00016891,2]
[367507293,1750835439250,-284.58505204,0.00016891,2]
[367507294,1750835439260,-460.0,0.00016891,2]
[367507295,1750835439269,-460.0,0.00016891,2]
[367507296,1750835439278,-460.0,0.00016891,2]
[367507297,1750835439287,-431.33452186,0.00016891,2]
[367507298,1750835439297,-403.90917153,0.00016891,2]
[367507299,1750835439306,-284.24911831,0.00016891,2]
[367507300,1750835439315,-460.0,0.00016891,2]
[367507301,1750835439325,-460.0,0.00016891,2]
[367507302,1750835439334,-460.0,0.00016891,2]
[367507303,1750835439343,-460.0,0.00016891,2]
[367507304,1750835439352,-300.0,0.00016891,2]
[367507305,1750835439362,-460.0,0.00016891,2]
[367507306,1750835439371,-460.0,0.00016891,2]
[367507307,1750835439380,-350.0,0.00016891,2]
[367507308,1750835439390,-460.0,0.00016891,2]
[367507309,1750835439399,-405.41225469,0.00016891,2]
[367507310,1750835439409,-460.0,0.00016891,2]
[367507311,1750835439418,-461.41841856,0.00016891,2]
[367507312,1750835439427,-460.0,0.00016891,2]
[367507313,1750835439436,-460.0,0.00016891,2]
[367507314,1750835439449,-441.70900847,0.00016891,2]
[367507315,1750835439458,-460.0,0.00016891,2]
[367507316,1750835439467,-461.84126892,0.00016891,2]
[367507317,1750835439477,-460.0,0.00016891,2]
[367507318,1750835439487,-228.69647663,0.00016891,2]
[367507319,1750835439497,-733.6,0.00016891,2]
[367507320,1750835439507,-187.30246384,0.00016891,2]
[367507321,1750835439517,-460.0,0.00016891,2]
[367507322,1750835439527,-460.0,0.00016891,2]
[367507323,1750835439537,-460.0,0.00016891,2]
[367507324,1750835439547,-460.0,0.00016891,2]
[367507325,1750835439557,-467.27640029,0.00016891,2]
[367507326,1750835439566,-460.0,0.00016891,2]
[367507327,1750835439576,-556.62,0.00016891,2]
[367507328,1750835439585,-483.19,0.00016891,2]
[367507329,1750835439596,-460.0,0.00016891,2]
[367507330,1750835439606,-460.0,0.00016891,2]
[367507331,1750835439616,-460.0,0.00016891,2]
[367507332,1750835439625,-857.32,0.00016891,2]
[367507333,1750835439635,-1382.45,0.00016891,2]
[367507334,1750835439645,-460.0,0.00016891,2]
[367507335,1750835439655,-460.0,0.00016891,2]
[367507336,1750835439665,-1352.81,0.00016891,2]
[367507337,1750835439674,-460.0,0.00016891,2]
[367507338,1750835439684,-690.1,0.00016891,2]
[367507339,1750835439694,-460.0,0.00016891,2]
[367507340,1750835439705,-460.0,0.00016891,2]
[367507341,1750835439715,-15021.94,0.00016891,2]
[367507342,1750835439725,-460.0,0.00016891,2]
[367507343,1750835439735,-460.0,0.00016891,2]
[367507344,1750835439744,-460.0,0.00016891,2]
[367507345,1750835439754,-573.88,0.00016891,2]
[367507346,1750835439764,-460.0,0.00016891,2]
[367507347,1750835439773,-467.62,0.00016891,2]
[367507348,1750835439783,-601.35,0.00016891,2]
[367507349,1750835439793,-460.0,0.00016891,2]
[367507350,1750835439803,-422.98057995,0.00016891,2]
[367507351,1750835439813,-460.0,0.00016891,2]
[367507352,1750835439822,-460.0,0.00016891,2]
[367507353,1750835439832,-460.0,0.00016891,2]
[367507354,1750835439841,-460.0,0.00016891,2]
[367507355,1750835439851,-460.0,0.00016891,2]
[367507356,1750835439861,-460.0,0.00016891,2]
[367507357,1750835439871,-460.0,0.00016891,2]
[367507358,1750835439880,-553.5408624,0.00016891,2]
[367507359,1750835439891,-460.0,0.00016891,2]
[367507360,1750835439900,-410.0,0.00016891,2]
[367507361,1750835439910,-460.0,0.00016892,2]
[367507362,1750835439920,-460.0,0.00016892,2]
[367507363,1750835439931,-460.0,0.00016892,2]
[367507364,1750835439941,-460.0,0.00016892,2]
[367507365,1750835439951,-460.0,0.00016892,2]
[367507366,1750835439962,-454.41949045,0.00016892,2]
[367507367,1750835439972,-398.44506338,0.00016892,2]
[367507368,1750835439982,-460.0,0.00016892,2]
[367507369,1750835439992,-460.0,0.00016892,2]
[367507370,1750835440001,-460.0,0.00016892,2]
[367507372,1750835440011,-500.0,0.00016892,2]
[367507373,1750835440020,-500.0,0.00016893,2]
[367507374,1750835440031,-460.0,0.00016893,2]
[367507375,1750835440040,-469.71412016,0.00016893,2]
[367507376,1750835440229,-460.0,0.00016893,2]
[367507377,1750835440239,-460.0,0.00016893,2]
[367507378,1750835440248,-460.0,0.00016893,2]
[367507380,1750835440258,-380.0,0.00016893,2]
[367507381,1750835440267,-460.0,0.00016893,2]
[367507382,1750835440276,-574.440394,0.00016893,2]
[367507383,1750835440285,-460.0,0.00016893,2]
[367507384,1750835440295,-460.0,0.00016893,2]
[367507385,1750835440304,-460.0,0.00016893,2]
[367507386,1750835440313,-303.830035,0.00016893,2]
[367507387,1750835440322,-460.0,0.00016893,2]
[367507388,1750835440331,-535.27,0.00016893,2]
[367507389,1750835440341,-460.0,0.00016893,2]
[367507390,1750835440350,-460.0,0.00016893,2]
[367507391,1750835440359,-460.0,0.00016893,2]
[367507392,1750835440368,-345.35226492,0.00016893,2]
[367507393,1750835440378,-460.0,0.00016893,2]
[367507394,1750835440387,-460.0,0.00016893,2]
[367507395,1750835440396,-1802.0040853,0.00017064,2]
[367507396,1750835440405,-515.78,0.00017162,2]
[367507397,1750835440415,-460.0,0.00017163,2]
[367507399,1750835440424,-606.18,0.00017163,2]
[367507400,1750835440433,-763.1,0.00017163,2]
[367507401,1750835440447,-5855.74,0.00017163,2]
[367507402,1750835440456,-460.0,0.00017163,2]
[367507403,1750835440466,-1338.01,0.00017163,2]
[367507404,1750835440476,-1012.65,0.00017163,2]
[367507405,1750835440486,-460.0,0.00017163,2]
[367507406,1750835440496,-6612.54,0.00017163,2]
[367507407,1750835440505,-6069.89,0.00017163,2]
[367507408,1750835440515,-460.0,0.00017163,2]
[367507409,1750835440525,-750.82,0.00017163,2]
[367507410,1750835440534,-533.82,0.00017163,2]
[367507411,1750835440544,-460.0,0.00017163,2]
[367507412,1750835440554,-741.32,0.00017163,2]
[367507413,1750835440563,-509.67,0.00017163,2]
[367507414,1750835440573,-1094.55,0.00017163,2]
[367507415,1750835440583,-460.0,0.00017164,2]
[367507416,1750835440592,-460.0,0.00017164,2]
[367507417,1750835440601,-460.0,0.00017164,2]
[367507418,1750835440611,-462.81,0.00017164,2]
[367507419,1750835440621,-1619.32,0.00017164,2]
[367507420,1750835440630,-460.0,0.00017164,2]
[367507421,1750835440639,-460.0,0.00017164,2]
[367507422,1750835440649,-460.0,0.00017164,2]
[367507423,1750835440659,-460.0,0.00017164,2]
[367507424,1750835440668,-1423.25,0.00017164,2]
[367507425,1750835440679,-460.0,0.00017164,2]
[367507426,1750835440688,-460.0,0.00017164,2]
[367507427,1750835440697,-460.0,0.00017164,2]
[367507428,1750835440707,-460.0,0.00017164,2]
[367507429,1750835440717,-460.0,0.00017164,2]
[367507430,1750835440728,-460.0,0.00017164,2]
[367507431,1750835440737,-460.0,0.00017164,2]
[367507432,1750835440747,-24791.41,0.00017164,2]
[367507433,1750835440757,-460.0,0.00017164,2]
[367507434,1750835440766,-460.0,0.00017164,2]
[367507435,1750835440776,-1841.29,0.00017164,2]
[367507436,1750835440786,-460.0,0.00017164,2]
[367507437,1750835440795,-460.0,0.00017164,2]
[367507438,1750835440805,-460.0,0.00017164,2]
[367507439,1750835440815,-460.0,0.00017164,2]
[367507440,1750835440824,-610.32,0.00017164,2]
[367507441,1750835440834,-460.0,0.00017165,2]
[367507442,1750835440843,-460.0,0.00017165,2]
[367507443,1750835440852,-1000.0,0.00017165,2]
[367507444,1750835440862,-460.0,0.00017165,2]
[367507445,1750835440872,-400.0,0.00017165,2]
[367507446,1750835440881,-460.0,0.00017165,2]
[367507447,1750835440890,-460.0,0.00017165,2]
[367507448,1750835440900,-460.0,0.00017165,2]
[367507449,1750835440911,-437.22660619,0.00017165,2]
[367507450,1750835440922,-500.0,0.00017165,2]
[367507451,1750835440931,-500.0,0.00017165,2]
[367507452,1750835440940,-500.0,0.00017165,2]
[367507453,1750835440951,-460.0,0.00017165,2]
[367507454,1750835440960,-460.0,0.00017165,2]
[367507455,1750835440970,-460.0,0.00017165,2]
[367507456,1750835440979,-527.56,0.00017165,2]
[367507457,1750835440989,-500.15,0.00017165,2]
[367507458,1750835440999,-460.0,0.00017165,2]
[367507459,1750835441010,-460.0,0.00017165,2]
[367507460,1750835441019,-460.0,0.00017165,2]
[367507461,1750835441029,-460.0,0.00017165,2]
[367507462,1750835441039,-460.0,0.00017165,2]
[367507463,1750835441048,-455.577321,0.00017165,2]
[367507464,1750835441058,-460.0,0.00017165,2]
[367507465,1750835441068,-460.0,0.00017165,2]
[367507466,1750835441077,-300.0,0.00017165,2]
[367507467,1750835441087,-460.0,0.00017165,2]
[367507468,1750835441096,-460.0,0.00017165,2]
[367507469,1750835441106,-460.0,0.00017165,2]
[367507470,1750835441115,-460.0,0.00017165,2]
[367507471,1750835441125,-460.0,0.00017165,2]
[367507472,1750835441134,-460.0,0.00017165,2]
[367507473,1750835441144,-733.6,0.00017165,2]
[367507474,1750835441153,-460.0,0.00017165,2]
[367507475,1750835441162,-460.0,0.00017165,2]
[367507476,1750835441172,-556.62,0.00017165,2]
[367507477,1750835441181,-460.0,0.00017165,2]
[367507478,1750835441190,-460.0,0.00017165,2]
[367507479,1750835441199,-857.32,0.00017165,2]
[367507480,1750835441209,-1382.45,0.00017165,2]
[367507481,1750835441218,-460.0,0.00017165,2]
[367507482,1750835441228,-1352.81,0.00017165,2]
[367507483,1750835441237,-460.0,0.00017165,2]
[367507484,1750835441246,-690.1,0.00017165,2]
[367507485,1750835441256,-460.0,0.00017165,2]
[367507486,1750835441267,-460.0,0.00017165,2]
[367507487,1750835441277,-460.0,0.00017165,2]
[367507488,1750835441286,-15021.94,0.00017165,2]
[367507489,1750835441296,-460.0,0.00017165,2]
[367507490,1750835441305,-573.88,0.00017165,2]
[367507491,1750835441314,-601.35,0.00017165,2]
[367507492,1750835441324,-460.0,0.00017165,2]
[367507493,1750835441333,-460.0,0.00017165,2]
[367507494,1750835441343,-460.0,0.00017165,2]
[367507495,1750835441352,-460.0,0.00017165,2]
[367507496,1750835441362,-460.0,0.00017165,2]
[367507497,1750835441372,-460.0,0.00017165,2]
[367507498,1750835441381,-460.0,0.00017165,2]
[367507499,1750835441391,-460.0,0.00017165,2]
[367507500,1750835441400,-468.07971234,0.00017166,2]
[367507501,1750835441409,-500.0,0.00017167,2]
[367507502,1750835441425,-460.0,0.00017167,2]
[367507503,1750835441440,-460.0,0.00017167,2]
[367507504,1750835441451,-460.0,0.00017167,2]
[367507505,1750835441461,-460.0,0.00017167,2]
[367507506,1750835441471,-460.0,0.00017167,2]
[367507507,1750835441483,-460.0,0.00017167,2]
[367507508,1750835441493,-460.0,0.00017167,2]
[367507509,1750835441503,-535.27,0.00017167,2]
[367507510,1750835441514,-460.0,0.00017167,2]
[367507511,1750835441524,-460.0,0.00017167,2]
[367507512,1750835441534,-460.0,0.00017167,2]
[367507513,1750835441544,-460.0,0.00017167,2]
[367507514,1750835441554,-315.65993067,0.00017437,2]
[367507515,1750835441564,-606.18,0.00017437,2]
[367507516,1750835441574,-763.1,0.00017437,2]
[367507517,1750835441584,-5855.74,0.00017437,2]
[367507518,1750835441594,-460.0,0.00017437,2]
[367507519,1750835441604,-1338.01,0.00017437,2]
[367507520,1750835441613,-1012.65,0.00017437,2]
[367507521,1750835441623,-460.0,0.00017437,2]
[367507522,1750835441633,-6612.54,0.00017437,2]
[367507523,1750835441643,-6069.89,0.00017437,2]
[367507524,1750835441653,-460.0,0.00017437,2]
[367507525,1750835441662,-750.82,0.00017437,2]
[367507526,1750835441672,-533.82,0.00017437,2]
[367507527,1750835441681,-460.0,0.00017437,2]
[367507528,1750835441692,-741.32,0.00017437,2]
[367507529,1750835441702,-509.67,0.00017437,2]
[367507530,1750835441711,-1094.55,0.00017437,2]
[367507531,1750835441721,-460.0,0.00017438,2]
[367507532,1750835441730,-460.0,0.00017438,2]
[367507533,1750835441740,-460.0,0.00017438,2]
[367507534,1750835441750,-462.81,0.00017438,2]
[367507535,1750835441760,-1619.32,0.00017438,2]
[367507536,1750835441769,-460.0,0.00017438,2]
[367507537,1750835441779,-460.0,0.00017438,2]
[367507538,1750835441788,-460.0,0.00017438,2]
[367507539,1750835441799,-460.0,0.00017438,2]
[367507540,1750835441808,-1423.25,0.00017438,2]
[367507541,1750835441818,-460.0,0.00017438,2]
[367507542,1750835441828,-460.0,0.00017438,2]
[367507543,1750835441838,-460.0,0.00017438,2]
[367507544,1750835441847,-460.0,0.00017438,2]
[367507545,1750835441858,-460.0,0.00017438,2]
[367507546,1750835441868,-549.9748583,0.00017438,2]
[367507547,1750835441877,-460.0,0.00017438,2]
[367507548,1750835441887,-24791.41,0.00017438,2]
[367507549,1750835441896,-460.0,0.00017438,2]
[367507550,1750835441906,-460.0,0.00017438,2]
[367507551,1750835441915,-1841.29,0.00017438,2]
[367507552,1750835441926,-460.0,0.00017438,2]
[367507553,1750835441935,-460.0,0.00017438,2]
[367507554,1750835441945,-460.0,0.00017438,2]
[367507555,1750835441955,-460.0,0.00017438,2]
[367507556,1750835441965,-610.32,0.00017438,2]
[367507557,1750835441975,-460.0,0.00017439,2]
[367507558,1750835441984,-430.0,0.00017439,2]
[367507559,1750835441994,-335.8504236,0.00017439,2]
[367507560,1750835442004,-424.52863344,0.00017439,2]
[367507561,1750835442014,-460.0,0.00017439,2]
[367507562,1750835442025,-181.32348082,0.00017439,2]
[367507563,1750835442035,-500.0,0.00017439,2]
[367507564,1750835442046,-500.0,0.00017439,2]
[367507565,1750835442055,-460.0,0.00017439,2]
[367507566,1750835442065,-460.0,0.00017439,2]
[367507567,1750835442075,-460.0,0.00017439,2]
[367507568,1750835442084,-527.56,0.00017439,2]
[367507569,1750835442093,-500.15,0.00017439,2]
[367507570,1750835442103,-460.0,0.00017439,2]
[367507571,1750835442112,-460.0,0.00017439,2]
[367507572,1750835442122,-460.0,0.00017439,2]
[367507573,1750835442131,-460.0,0.00017439,2]
[367507574,1750835442140,-460.0,0.00017439,2]
[367507575,1750835442150,-356.11947404,0.00017439,2]
[367507576,1750835442160,-300.0,0.00017439,2]
[367507577,1750835442169,-460.0,0.00017439,2]
[367507578,1750835442179,-460.0,0.00017439,2]
[367507579,1750835442189,-460.0,0.00017439,2]
[367507580,1750835442199,-460.0,0.00017439,2]
[367507581,1750835442209,-460.0,0.00017439,2]
[367507582,1750835442218,-464.32054179,0.00017439,2]
[367507583,1750835442228,-733.6,0.00017439,2]
[367507584,1750835442237,-460.0,0.00017439,2]
[367507585,1750835442247,-460.0,0.00017439,2]
[367507586,1750835442257,-556.62,0.00017439,2]
[367507587,1750835442266,-514.65482928,0.00017439,2]
[367507588,1750835442276,-460.0,0.00017439,2]
[367507589,1750835442286,-857.32,0.00017439,2]
[367507590,1750835442296,-1382.45,0.00017439,2]
[367507591,1750835442306,-460.0,0.00017439,2]
[367507592,1750835442319,-1352.81,0.00017439,2]
[367507593,1750835442329,-252.55,0.00017439,2]
[367507594,1750835442339,-690.1,0.00017439,2]
[367507595,1750835442350,-460.0,0.00017439,2]
[367507596,1750835442359,-460.0,0.00017439,2]
[367507597,1750835442369,-15021.94,0.00017439,2]
[367507598,1750835442379,-460.0,0.00017439,2]
[367507599,1750835442388,-460.0,0.00017439,2]
[367507600,1750835442398,-573.88,0.00017439,2]
[367507601,1750835442408,-601.35,0.00017439,2]
[367507602,1750835442417,-150.32,0.00017439,2]
[367507603,1750835442427,-460.0,0.00017439,2]
[367507604,1750835442438,-460.0,0.00017439,2]
[367507605,1750835442450,-562.77408241,0.00017439,2]
[367507606,1750835442459,-460.0,0.00017439,2]
[367507607,1750835442469,-318.27916767,0.00017439,2]
[367507608,1750835442479,-460.0,0.00017439,2]
[367507609,1750835442488,-500.0,0.0001744,2]
[367507610,1750835442499,-460.0,0.00017441,2]
[367507611,1750835442509,-460.0,0.00017441,2]
[367507612,1750835442519,-460.0,0.00017441,2]
[367507613,1750835442529,-460.0,0.00017441,2]
[367507614,1750835442540,-460.0,0.00017441,2]
[367507615,1750835442553,-460.0,0.00017441,2]
[367507616,1750835442563,-460.0,0.00017441,2]
[367507617,1750835442572,-535.27,0.00017441,2]
[367507618,1750835442582,-460.0,0.00017441,2]
[367507619,1750835442592,-460.0,0.00017441,2]
[367507620,1750835442601,-460.0,0.00017441,2]
[367507621,1750835442611,-460.0,0.00017441,2]
[367507622,1750835442621,-878.67916531,0.00017444,2]
[367507623,1750835442631,-500.0,0.00017447,2]
[367507624,1750835442641,-289.6183622,0.00017447,2]
[367507625,1750835442650,-1802.00408526,0.00017543,2]
[367507626,1750835442660,-500.0,0.00017571,2]
[367507627,1750835442669,-606.18,0.00017711,2]
[367507628,1750835442679,-763.1,0.00017711,2]
[367507629,1750835442689,-5855.74,0.00017711,2]
[367507630,1750835442699,-460.0,0.00017711,2]
[367507631,1750835442708,-1338.01,0.00017711,2]
[367507632,1750835442718,-1012.65,0.00017711,2]
[367507633,1750835442728,-460.0,0.00017711,2]
[367507634,1750835442738,-6612.54,0.00017711,2]
[367507635,1750835442748,-6069.89,0.00017711,2]
[367507636,1750835442758,-460.0,0.00017711,2]
[367507637,1750835442767,-750.82,0.00017711,2]
[367507638,1750835442777,-533.82,0.00017711,2]
[367507639,1750835442787,-741.32,0.00017711,2]
[367507640,1750835442797,-509.67,0.00017711,2]
[367507642,1750835442806,-1094.55,0.00017711,2]
[367507643,1750835442816,-460.0,0.00017712,2]
[367507644,1750835442826,-460.0,0.00017712,2]
[367507645,1750835442835,-460.0,0.00017712,2]
[367507646,1750835442845,-462.81,0.00017712,2]
[367507647,1750835442854,-1619.32,0.00017712,2]
[367507648,1750835442863,-460.0,0.00017712,2]
[367507649,1750835442874,-460.0,0.00017712,2]
[367507650,1750835442883,-262.39,0.00017712,2]
[367507651,1750835442893,-460.0,0.00017712,2]
[367507652,1750835442903,-1423.25,0.00017712,2]
[367507653,1750835442912,-460.0,0.00017712,2]
[367507654,1750835442922,-460.0,0.00017712,2]
[367507655,1750835442931,-460.0,0.00017712,2]
[367507656,1750835442941,-460.0,0.00017712,2]
[367507657,1750835442950,-460.0,0.00017712,2]
[367507658,1750835442959,-460.0,0.00017712,2]
[367507659,1750835442969,-24791.41,0.00017712,2]
[367507660,1750835442978,-460.0,0.00017712,2]
[367507661,1750835442988,-460.0,0.00017712,2]
[367507662,1750835442997,-1841.29,0.00017712,2]
[367507663,1750835443006,-460.0,0.00017712,2]
[367507664,1750835443017,-460.0,0.00017712,2]
[367507666,1750835443027,-460.0,0.00017712,2]
[367507667,1750835443036,-460.0,0.00017712,2]
[367507668,1750835443046,-610.32,0.00017712,2]
[367507669,1750835443055,-460.0,0.00017713,2]
[367507670,1750835443065,-500.0,0.00017713,2]
[367507671,1750835443074,-500.0,0.00017713,2]
[367507672,1750835443083,-460.0,0.00017713,2]
[367507673,1750835443092,-460.0,0.00017713,2]
[367507675,1750835443102,-460.0,0.00017713,2]
[367507676,1750835443111,-527.56,0.00017713,2]
[367507677,1750835443121,-500.15,0.00017713,2]
[367507678,1750835443130,-460.0,0.00017713,2]
[367507679,1750835443139,-460.0,0.00017713,2]
[367507680,1750835443148,-460.0,0.00017713,2]
[367507681,1750835443157,-460.0,0.00017713,2]
[367507682,1750835443166,-460.0,0.00017713,2]
[367507683,1750835443176,-300.0,0.00017713,2]
[367507684,1750835443185,-339.30212966,0.00017713,2]
[367507686,1750835443194,-460.0,0.00017713,2]
[367507687,1750835443204,-208.70979118,0.00017713,2]
[367507688,1750835443215,-460.0,0.00017713,2]
[367507689,1750835443225,-460.0,0.00017713,2]
[367507690,1750835443234,-733.6,0.00017713,2]
[367507691,1750835443243,-460.0,0.00017713,2]
[367507692,1750835443253,-460.0,0.00017713,2]
[367507693,1750835443263,-556.62,0.00017713,2]
[367507694,1750835443272,-460.0,0.00017713,2]
[367507695,1750835443282,-857.32,0.00017713,2]
[367507696,1750835443292,-1382.45,0.00017713,2]
[367507697,1750835443301,-460.0,0.00017713,2]
[367507698,1750835443311,-1352.81,0.00017713,2]
[367507699,1750835443321,-690.1,0.00017713,2]
[367507700,1750835443330,-460.0,0.00017713,2]
[367507701,1750835443340,-460.0,0.00017713,2]
[367507702,1750835443349,-15021.94,0.00017713,2]
[367507703,1750835443358,-460.0,0.00017713,2]
[367507704,1750835443368,-460.0,0.00017713,2]
[367507705,1750835443377,-573.88,0.00017713,2]
[367507706,1750835443386,-601.35,0.00017713,2]
[367507707,1750835443395,-460.0,0.00017713,2]
[367507708,1750835443404,-460.0,0.00017713,2]
[367507709,1750835443414,-460.0,0.00017713,2]
[367507710,1750835443423,-460.0,0.00017713,2]
[367507711,1750835443433,-500.0,0.00017714,2]
[367507712,1750835443445,-260.7837751,0.00017715,2]
[367507713,1750835443455,-279.49560017,0.00017715,2]
[367507714,1750835443464,-460.0,0.00017715,2]
[367507715,1750835443473,-460.0,0.00017715,2]
[367507716,1750835443483,-460.0,0.00017715,2]
[367507717,1750835443494,-460.0,0.00017715,2]
[367507718,1750835443659,-460.0,0.00017715,2]
[367507719,1750835443669,-535.27,0.00017715,2]
[367507720,1750835443679,-460.0,0.00017715,2]
[367507721,1750835443688,-460.0,0.00017715,2]
[367507722,1750835443698,-460.0,0.00017715,2]
[367507723,1750835443707,-460.0,0.00017715,2]
[367507724,1750835443717,-287.0,0.0001778,2]
[367507725,1750835443727,-243.20386105,0.00017785,2]
[367507726,1750835443736,-500.0,0.00017788,2]
[367507727,1750835443746,-500.0,0.00017788,2]
[367507728,1750835443755,-500.0,0.00017788,2]
[367507729,1750835443767,-500.0,0.00017788,2]
[367507730,1750835443776,-211.16157201,0.00017788,2]
[367507731,1750835443785,-223.05869188,0.0001785,2]
[367507732,1750835443794,-500.0,0.00017888,2]
[367507733,1750835443804,-500.0,0.00017888,2]
[367507734,1750835443813,-195.56591412,0.00017893,2]
[367507735,1750835443823,-461.19096883,0.00017893,2]
[367507736,1750835443832,-460.0,0.00017893,2]
[367507737,1750835443842,-308.14577533,0.00017893,2]
[367507738,1750835443851,-606.18,0.00017985,2]
[367507739,1750835443861,-763.1,0.00017985,2]
[367507740,1750835443870,-5855.74,0.00017985,2]
[367507741,1750835443880,-460.0,0.00017985,2]
[367507742,1750835443889,-1338.01,0.00017985,2]
[367507743,1750835443898,-1012.65,0.00017985,2]
[367507744,1750835443908,-460.0,0.00017985,2]
[367507745,1750835443917,-6612.54,0.00017985,2]
[367507746,1750835443926,-6069.89,0.00017985,2]
[367507747,1750835443936,-460.0,0.00017985,2]
[367507748,1750835443945,-750.82,0.00017985,2]
[367507749,1750835443955,-533.82,0.00017985,2]
[367507750,1750835443964,-741.32,0.00017985,2]
[367507751,1750835443973,-509.67,0.00017985,2]
[367507752,1750835443983,-1094.55,0.00017985,2]
[367507753,1750835443992,-460.0,0.00017986,2]
[367507754,1750835444002,-460.0,0.00017986,2]
[367507755,1750835444012,-460.0,0.00017986,2]
[367507756,1750835444022,-462.81,0.00017986,2]
[367507757,1750835444031,-1619.32,0.00017986,2]
[367507758,1750835444040,-460.0,0.00017986,2]
[367507759,1750835444049,-460.0,0.00017986,2]
[367507760,1750835444058,-460.0,0.00017986,2]
[367507761,1750835444067,-1423.25,0.00017986,2]
[367507762,1750835444077,-460.0,0.00017986,2]
[367507763,1750835444086,-460.0,0.00017986,2]
[367507764,1750835444095,-460.0,0.00017986,2]
[367507765,1750835444104,-460.0,0.00017986,2]
[367507766,1750835444113,-460.0,0.00017986,2]
[367507767,1750835444124,-311.59,0.00017986,2]
[367507768,1750835444133,-24791.41,0.00017986,2]
[367507769,1750835444142,-460.0,0.00017986,2]
[367507770,1750835444151,-460.0,0.00017986,2]
[367507771,1750835444160,-1841.29,0.00017986,2]
[367507772,1750835444170,-460.0,0.00017986,2]
[367507773,1750835444179,-460.0,0.00017986,2]
[367507774,1750835444188,-460.0,0.00017986,2]
[367507775,1750835444198,-610.32,0.00017986,2]
[367507776,1750835444207,-460.0,0.00017987,2]
[367507777,1750835444217,-500.0,0.00017987,2]
[367507778,1750835444226,-500.0,0.00017987,2]
[367507779,1750835444235,-460.0,0.00017987,2]
[367507780,1750835444244,-460.0,0.00017987,2]
[367507781,1750835444253,-460.0,0.00017987,2]
[367507782,1750835444263,-527.56,0.00017987,2]
[367507783,1750835444271,-500.15,0.00017987,2]
[367507784,1750835444281,-460.0,0.00017987,2]
[367507785,1750835444290,-460.0,0.00017987,2]
[367507786,1750835444300,-460.0,0.00017987,2]
[367507787,1750835444309,-460.0,0.00017987,2]
[367507788,1750835444319,-460.0,0.00017987,2]
[367507789,1750835444328,-300.0,0.00017987,2]